bitfinex/quotes_ETHUSD_20210701
["timestamp","ask_amount","ask_price","bid_price","bid_amount"]
[1625098580427,7.3165,2235.7,2235.1,0.21]
[1625098580514,10.64165056,2235.7,2235.1,0.21]
[1625098580616,7.4565,2235.7,2235.1,0.21]
[1625098580726,4.0265,2235.7,2235.1,0.21]
[1625098580821,3.9265,2235.7,2235.6,50.98843634]
[1625098580913,9.20744368,2236.6,2235.6,50.98843634]
[1625098581015,5.01,2236.6,2235.1,0.21]
[1625098581121,4.40149566,2236.5,2235.1,0.21]
[1625098581212,0.32673339,2236.5,2235.1,0.21]
[1625098581312,4.05385636,2236.5,2235.1,2.10198904]
[1625098581414,4.05385636,2236.5,2235.2,0.14]
[1625098581512,4.05385636,2236.5,2235.1,2.10198904]
[1625098581614,5.03960792,2236.9,2235.1,2.10198904]
[1625098581817,11.74786792,2236.9,2235.1,2.05198904]
[1625098582114,12.04294513,2236.9,2235.1,0.11]
[1625098582312,5.03960792,2236.9,2235.1,0.11]
[1625098582413,0.25149313,2236.9,2235.1,0.11]
[1625098582617,0.28952309,2237.0,2235.1,0.01]
[1625098582717,4.67970387,2237.0,2235.1,0.01]
[1625098582817,4.43696454,2237.0,2235.1,0.01]
[1625098582923,4.43696454,2237.0,2235.1,3.94813544]
[1625098583017,4.14744145,2237.0,2235.1,3.94813544]
[1625098583116,4.7808418,2237.3,2235.1,3.94813544]
[1625098583219,4.7808418,2237.3,2235.2,0.1]
[1625098583671,4.79968702,2237.3,2235.3,1.98731155]
[1625098583769,0.14,2237.2,2235.3,1.98731155]
[1625098583871,6.70742,2237.1,2235.3,1.98731155]
[1625098583972,0.01282602,2237.1,2235.3,3.93813544]
[1625098584070,0.01282602,2237.1,2235.4,0.14]
[1625098584268,0.01282602,2237.1,2235.4,0.18]
[1625098584470,0.01282602,2237.1,2235.4,20.18]
[1625098584569,0.01282602,2237.1,2235.5,3.94460426]
[1625098584670,0.01282602,2237.1,2235.6,0.08]
[1625098584876,0.01282602,2237.1,2235.7,5.01]
[1625098584978,6.02e-06,2237.1,2235.7,5.01]
[1625098585080,6.02e-06,2237.1,2235.9,0.851]
[1625098585356,6.02e-06,2237.1,2235.9,2.0937]
[1625098585455,6.02e-06,2237.1,2236.0,0.14]
[1625098587006,6.02e-06,2237.1,2236.1,13.94782]
[1625098587129,6.02e-06,2237.1,2236.2,5.01]
[1625098587330,6.02e-06,2237.1,2236.3,5.01]
[1625098587528,6.02e-06,2237.1,2236.4,0.06]
[1625098587926,6.02e-06,2237.1,2236.2,0.00631261]
[1625098588431,6.02e-06,2237.1,2236.4,6.7042]
[1625098590125,6.02e-06,2237.1,2236.1,8.95067056]
[1625098590228,6.02e-06,2237.1,2236.1,0.01285056]
[1625098590328,4.11874108,2237.1,2236.1,0.01285056]
[1625098591123,4.11873506,2237.1,2236.1,0.01285056]
[1625098592147,4.11873506,2237.1,2235.9,6.66864056]
[1625098592250,4.11873506,2237.1,2236.1,5.01]
[1625098592352,4.11873506,2237.1,2235.9,12.362]
[1625098592450,4.11873506,2237.1,2236.0,0.14]
[1625098592550,4.11873506,2237.1,2236.1,5.01]
[1625098593048,0.28755275,2238.0,2236.1,5.01781747]
[1625098593150,0.28755275,2238.0,2236.3,6.70434]
[1625098593249,0.28755275,2238.0,2236.3,6.71116805]
[1625098593352,4.54372436,2238.2,2236.3,6.71116805]
[1625098593895,3.13090253,2236.9,2236.3,6.71116805]
[1625098593990,10.0,2237.0,2236.3,6.71116805]
[1625098594093,3.11561217,2236.9,2236.3,6.71116805]
[1625098594589,3.11561217,2236.9,2236.4,0.08]
[1625098594695,10.0,2237.0,2236.5,5.01]
[1625098594795,10.0,2237.0,2236.6,15.0]
[1625098594894,9.1,2237.0,2236.6,20.01]
[1625098594992,9.1,2237.0,2236.7,5.01]
[1625098595093,3.10680613,2236.9,2236.7,5.15]
[1625098595194,3.10680613,2236.9,2236.7,0.09]
[1625098595595,2.06647016,2236.9,2236.7,0.09]
[1625098596325,1.6e-07,2236.9,2236.8,17.06]
[1625098596428,1.6e-07,2236.9,2236.8,20.1869]
[1625098596526,0.29324651,2238.7,2236.9,21.13453961]
[1625098596626,0.29324651,2238.7,2236.9,22.40023961]
[1625098596724,4.72400027,2238.7,2236.9,1.44023961]
[1625098596828,4.72400027,2238.7,2236.9,1.41363032]
[1625098597228,4.43075376,2238.7,2236.9,6.42363032]
[1625098597330,0.2,2238.9,2237.0,5.01]
[1625098597428,4.02681449,2238.9,2237.1,0.14]
[1625098597531,4.02681449,2238.9,2237.1,5.26486418]
[1625098597627,4.02681449,2238.9,2237.1,5.28836209]
[1625098597737,4.02681449,2238.9,2237.2,5.01]
[1625098597828,4.02681449,2238.9,2237.3,5.01]
[1625098597932,4.02681449,2238.9,2237.3,0.00864182]
[1625098598130,4.02681449,2238.9,2237.3,3.65624182]
[1625098598479,3.97681449,2238.9,2237.3,3.65624182]
[1625098598875,3.97681449,2238.9,2237.3,4.72054182]
[1625098598979,3.56004365,2238.6,2237.3,3.72054182]
[1625098599076,4.07550248,2238.9,2237.3,3.72054182]
[1625098599879,4.07550248,2238.9,2237.3,3.6476]
[1625098601441,4.07550248,2238.9,2237.3,10.34932]
[1625098601939,0.15,2238.9,2237.3,10.34932]
[1625098602041,0.05,2238.9,2237.4,0.2]
[1625098602142,3.9952751,2238.9,2237.4,0.23159025]
[1625098602240,3.9952751,2238.9,2237.4,0.2]
[1625098602343,3.9952751,2238.9,2237.4,8.2]
[1625098602438,3.9952751,2238.9,2237.5,5.01]
[1625098602739,3.9952751,2238.9,2237.6,5.01]
[1625098603071,3.9952751,2238.9,2237.7,6.70033]
[1625098603319,0.05,2238.9,2237.7,6.70033]
[1625098603621,0.05,2238.9,2237.5,16.93377]
[1625098603724,0.05,2238.9,2237.5,8.93377]
[1625098604020,5.01,2238.8,2237.3,2.39418346]
[1625098604121,0.05,2238.9,2237.2,0.14]
[1625098604220,4.51138518,2238.7,2237.2,0.14]
[1625098604321,5.01,2238.8,2237.2,6.70222]
[1625098604420,4.7625288,2238.7,2237.2,6.70222]
[1625098604523,5.01,2238.6,2236.8,12.2871219]
[1625098604640,10.44872194,2238.5,2236.8,8.93662]
[1625098604743,0.2591141,2238.4,2236.8,8.93662]
[1625098604828,7.3991141,2238.4,2236.8,8.93662]
[1625098604922,0.3991141,2238.4,2236.8,8.93662]
[1625098605140,0.14,2238.4,2236.8,8.93662]
[1625098605439,0.14,2238.4,2236.9,0.06]
[1625098605539,5.15,2238.4,2236.9,0.06]
[1625098605639,4.32005146,2238.3,2236.8,8.93662]
[1625098605738,4.16827237,2238.3,2236.8,8.93662]
[1625098606292,5.10101749,2238.7,2236.8,8.93662]
[1625098606388,5.02625734,2238.7,2236.8,8.93662]
[1625098606592,0.16520959,2238.6,2236.8,8.93662]
[1625098606789,5.01,2238.5,2236.8,8.93662]
[1625098606992,4.53680722,2238.4,2236.8,8.93662]
[1625098607431,4.53680722,2238.4,2237.1,6.70296]
[1625098607533,7.76910722,2238.4,2237.1,6.70296]
[1625098607636,5.01,2238.2,2236.8,8.93662]
[1625098607734,4.60652319,2238.1,2236.8,8.93662]
[1625098608137,4.55652319,2238.1,2236.8,8.93662]
[1625098608336,0.14,2238.4,2236.8,8.93662]
[1625098608433,5.15,2238.4,2236.8,8.93662]
[1625098608636,4.31038434,2238.3,2236.8,8.93662]
[1625098608841,4.31038434,2238.3,2237.0,8.3612499]
[1625098608940,4.31038434,2238.3,2237.0,11.5103499]
[1625098609036,4.52536604,2238.7,2237.0,11.5103499]
[1625098609136,4.52536604,2238.7,2237.0,19.5103499]
[1625098609236,4.52536604,2238.7,2237.0,11.5103499]
[1625098609339,4.52536604,2238.7,2237.0,19.5103499]
[1625098609982,4.42536604,2238.7,2237.0,19.5103499]
[1625098610185,11.12826604,2238.7,2237.3,8.93646]
[1625098610283,11.26826604,2238.7,2237.3,8.93646]
[1625098610487,5.01,2238.5,2237.3,8.93646]
[1625098610584,4.31093271,2238.4,2237.0,11.3512499]
[1625098610685,4.27532402,2238.4,2237.0,11.3512499]
[1625098610883,0.14,2238.7,2237.0,11.3512499]
[1625098610984,5.15,2238.7,2237.0,11.3512499]
[1625098611183,9.22275753,2238.6,2237.0,11.3512499]
[1625098611285,11.21275753,2238.6,2237.0,11.3512499]
[1625098612190,3.87390151,2238.4,2237.3,6.70319]
[1625098612290,10.85812209,2238.4,2237.3,6.70319]
[1625098613592,10.85812209,2238.4,2237.8,3.3515357]
[1625098613893,10.85812209,2238.4,2237.8,0.70381666]
[1625098614734,10.85812209,2238.4,2238.1,6.70314]
[1625098614938,10.85812209,2238.4,2238.1,10.054577]
[1625098615134,10.85812209,2238.4,2238.1,3.351437]
[1625098615734,7.0,2238.4,2238.1,3.351437]
[1625098615840,7.0,2238.4,2238.2,6.70279]
[1625098616038,3.12594864,2238.3,2238.2,19.04529]
[1625098616239,3.12594864,2238.3,2238.2,19.08529]
[1625098616491,3.12594864,2238.3,2238.2,11.08529]
[1625098616686,3.12594864,2238.3,2238.2,19.08529]
[1625098616785,3.12594864,2238.3,2238.2,11.08529]
[1625098616988,3.12594864,2238.3,2238.2,19.08529]
[1625098617089,3.12594864,2238.3,2238.2,11.08529]
[1625098617385,3.12594864,2238.3,2238.2,11.04529]
[1625098617487,7.0,2238.4,2238.2,19.04529]
[1625098617589,3.12594864,2238.3,2238.2,19.04529]
[1625098618087,3.12594864,2238.3,2238.2,18.04529]
[1625098618186,3.12594864,2238.3,2238.2,18.08529]
[1625098618838,3.07594864,2238.3,2238.2,18.08529]
[1625098619791,3.07594864,2238.3,2238.2,18.04529]
[1625098620193,3.07594864,2238.3,2238.2,20.43947346]
[1625098620392,3.07594864,2238.3,2238.2,13.73668346]
[1625098620592,3.02594864,2238.3,2238.2,20.53507346]
[1625098620689,3.02594864,2238.3,2238.2,13.83668346]
[1625098621039,3.02594864,2238.3,2238.2,14.83668346]
[1625098621542,3.02594864,2238.3,2238.2,21.88668346]
[1625098621641,0.05,2238.9,2238.5,6.6982144]
[1625098621742,7.0,2238.6,2238.5,6.6982144]
[1625098621841,10.15609814,2238.6,2238.5,14.6982144]
[1625098622043,8.14e-06,2238.6,2238.5,14.6982144]
[1625098622144,0.05,2238.9,2238.5,14.7582144]
[1625098622246,9.9851,2239.7,2238.7,5.01]
[1625098622345,0.2,2239.9,2238.7,5.01]
[1625098622442,3.4450468,2239.5,2238.7,5.15]
[1625098622543,0.2,2239.9,2238.7,5.15]
[1625098622644,0.2,2239.9,2238.8,5.01]
[1625098622747,0.2,2239.9,2239.3,6.69706]
[1625098622851,0.2,2239.9,2239.5,3.3481728]
[1625098623785,0.2,2239.9,2239.5,8.1759728]
[1625098623884,0.2,2239.9,2239.5,16.1759728]
[1625098624385,0.2,2239.9,2239.7,6.69635]
[1625098625289,3.45762833,2239.9,2239.7,6.69635]
[1625098625738,0.2,2239.9,2239.7,6.69635]
[1625098625935,3.72789441,2239.9,2239.7,6.69635]
[1625098626488,3.72789441,2239.9,2239.6,8.92847]
[1625098626640,3.72789441,2239.9,2239.5,0.03247021]
[1625098626744,3.72789441,2239.9,2239.0,4.4647494]
[1625098627784,3.72789441,2239.9,2239.4,6.69794]
[1625098628233,3.72789441,2239.9,2239.4,19.15374]
[1625098628338,3.72789441,2239.9,2239.4,12.4558]
[1625098628836,0.2,2239.9,2239.4,12.4558]
[1625098629033,0.2,2239.9,2239.6,6.69663]
[1625098629985,0.2,2239.9,2239.7,3.3479842]
[1625098630182,0.2,2239.9,2239.8,6.69604]
[1625098632537,0.2,2239.9,2239.8,6.59604]
[1625098633237,0.2,2239.9,2239.8,6.67604]
[1625098633443,0.2,2239.9,2239.8,16.77604]
[1625098634682,0.2,2239.9,2239.8,6.67604]
[1625098634785,0.2,2239.9,2239.8,0.08]
[1625098634883,0.2,2239.9,2239.8,5.09]
[1625098635733,0.2,2240.9,2239.9,13.1]
[1625098635841,0.2,2240.9,2240.4,6.6938]
[1625098635936,0.2,2240.9,2240.4,10.788]
[1625098636135,0.2,2240.9,2240.4,18.788]
[1625098636233,0.2,2240.9,2240.4,12.0942]
[1625098636646,0.2,2240.9,2240.5,0.04]
[1625098636941,0.2,2240.9,2240.4,12.0942]
[1625098637149,0.2,2240.9,2240.6,6.69317]
[1625098637246,0.2,2240.9,2240.3,8.92507]
[1625098637348,9.12214618,2240.9,2240.3,8.92507]
[1625098637443,9.02214618,2240.9,2240.1,8.92456]
[1625098638047,4.76974618,2240.9,2240.1,8.92456]
[1625098638145,0.1,2240.9,2240.1,8.92456]
[1625098638448,0.1,2240.9,2240.3,3.3467812]
[1625098638544,0.1,2240.9,2240.3,6.9414812]
[1625098639088,0.1,2240.9,2240.3,14.9414812]
[1625098639184,0.1,2240.9,2240.3,6.9414812]
[1625098639291,0.1,2240.9,2240.4,8.0]
[1625098639387,0.1,2240.9,2240.3,14.9414812]
[1625098639490,0.1,2240.9,2240.6,6.69392]
[1625098640295,0.1,2240.9,2240.4,8.92406]
[1625098640395,0.1,2240.9,2240.2,8.92406]
[1625098640689,9.07837396,2240.9,2240.2,8.92406]
[1625098640790,9.02837396,2240.9,2240.2,8.92406]
[1625098641475,9.02837396,2240.9,2240.0,8.92767]
[1625098641976,4.01837396,2240.9,2240.0,8.92767]
[1625098642080,0.05,2240.9,2240.0,8.92767]
[1625098645448,0.05,2240.9,2240.0,16.92767]
[1625098645639,0.05,2240.9,2240.4,6.69446]
[1625098646550,0.05,2240.9,2240.3,8.92595]
[1625098646653,0.05,2240.9,2240.0,8.92767]
[1625098647880,3.76692707,2240.9,2240.0,8.92767]
[1625098647939,0.05,2240.9,2240.0,8.92767]
[1625098648642,9.206,2240.9,2240.0,8.92767]
[1625098648743,4.196,2240.9,2240.0,8.92767]
[1625098648838,4.18245138,2240.8,2240.0,8.92767]
[1625098650648,5.01,2240.6,2239.9,8.92786]
[1625098650748,5.17989872,2240.6,2239.5,9.9278]
[1625098650849,0.25552415,2240.4,2239.5,8.9278]
[1625098651047,4.59132415,2240.4,2239.5,8.9278]
[1625098651149,4.03363191,2240.3,2239.5,8.9278]
[1625098651247,0.21342384,2240.2,2239.5,8.9278]
[1625098652046,0.21342384,2240.2,2239.8,6.69692]
[1625098652248,4.03363191,2240.3,2239.8,6.69692]
[1625098653297,4.03363191,2240.3,2239.5,8.9278]
[1625098653500,3.98363191,2240.3,2239.5,8.9278]
[1625098653901,3.88363191,2240.3,2239.5,8.9278]
[1625098654639,3.88363191,2240.3,2239.8,6.69671]
[1625098658591,3.63363191,2240.3,2239.8,6.69671]
[1625098659541,3.46452297,2240.4,2239.9,3.3477076]
[1625098659639,0.05,2240.9,2239.9,3.4477076]
[1625098659840,0.05,2240.9,2239.9,8.1]
[1625098660040,0.05,2240.9,2240.0,0.04]
[1625098660142,0.05,2240.9,2240.0,5.05]
[1625098660239,0.05,2240.9,2240.0,5.01]
[1625098660614,0.05,2240.9,2239.9,10.34489478]
[1625098660716,0.05,2240.9,2239.9,2.34489478]
[1625098660915,0.05,2240.9,2240.4,6.69445]
[1625098661393,0.05,2240.9,2240.4,4.04909635]
[1625098664900,0.05,2240.9,2240.4,14.39399113]
[1625098665000,0.05,2240.9,2240.4,10.34489478]
[1625098665598,0.05,2240.9,2240.5,0.08]
[1625098666208,0.05,2240.9,2240.4,10.34489478]
[1625098666407,0.05,2240.9,2240.6,6.69381]
[1625098667710,0.05,2240.9,2240.6,4.69732]
[1625098668853,0.05,2240.9,2240.6,8.0441954]
[1625098668954,0.05,2240.9,2240.6,11.8914954]
[1625098669152,0.05,2240.9,2240.6,22.23639018]
[1625098669252,0.05,2240.9,2240.7,0.16]
[1625098669558,0.05,2240.9,2240.8,15.41]
[1625098669655,0.05,2240.9,2240.8,7.35489478]
[1625098669753,0.05,2240.9,2240.8,10.34489478]
[1625098669855,0.05,2240.9,2240.8,10.40489478]
[1625098670254,3.8240578,2241.6,2240.8,10.34489478]
[1625098670449,3.8240578,2241.6,2241.2,6.69242]
[1625098671131,16.68325,2242.1,2241.2,6.69242]
[1625098671132,3.97483445,2242.0,2241.2,6.69242]
[1625098671634,10.66735445,2242.0,2241.2,6.69242]
[1625098671734,10.66735445,2242.0,2241.1,8.0]
[1625098671735,3.97483445,2242.0,2241.1,8.0]
[1625098671837,4.52775973,2242.3,2241.1,8.0]
[1625098671932,4.53094298,2242.3,2241.1,8.0]
[1625098672035,0.44398407,2242.2,2241.1,8.0]
[1625098672134,10.24682293,2242.1,2240.8,2.34489478]
[1625098672335,10.24682293,2242.1,2240.5,9.8463]
[1625098672437,3.8626,2241.9,2240.5,9.8463]
[1625098672540,3.8626,2241.9,2240.6,3.3468054]
[1625098672643,4.49243557,2241.8,2240.6,3.3468054]
[1625098672748,6.69346,2241.7,2240.8,6.69362]
[1625098672841,4.07806153,2241.6,2240.8,6.69362]
[1625098673743,0.2,2241.9,2240.8,6.69362]
[1625098674446,6.84285,2241.9,2240.8,6.69362]
[1625098674544,4.52725839,2241.8,2240.8,6.69362]
[1625098674643,8.99480433,2241.8,2240.8,6.69362]
[1625098675099,5.01,2241.6,2240.8,6.69362]
[1625098675300,5.01,2241.6,2240.7,8.92436]
[1625098675301,4.00624478,2241.5,2240.7,8.92436]
[1625098675611,4.00624478,2241.5,2240.6,8.92471]
[1625098675708,4.00624478,2241.5,2240.5,8.0]
[1625098675806,1.3497,2241.9,2240.6,3.4067249]
[1625098675807,4.64009105,2241.7,2240.6,3.4067249]
[1625098675904,4.44443809,2241.7,2240.6,11.4067249]
[1625098676103,10.62343809,2241.7,2240.6,11.3467249]
[1625098676604,10.62343809,2241.7,2240.6,13.69161968]
[1625098677056,17.31688809,2241.7,2240.7,8.92436]
[1625098678015,17.31688809,2241.7,2240.7,8.82436]
[1625098679322,10.62343809,2241.7,2240.7,8.82436]
[1625098679643,10.62343809,2241.7,2240.7,16.82436]
[1625098680027,10.62343809,2241.7,2240.9,3.346352]
[1625098680094,0.15,2241.9,2240.8,2.69811145]
[1625098680146,0.15,2241.9,2240.8,7.17271145]
[1625098680346,0.15,2241.9,2240.9,0.04]
[1625098680750,0.15,2241.9,2240.9,2.53811145]
[1625098680851,0.15,2241.9,2241.3,6.69217]
[1625098680947,0.15,2241.9,2241.0,8.92313]
[1625098681052,0.15,2241.9,2241.0,16.92313]
[1625098681147,4.43745605,2241.9,2241.0,8.92313]
[1625098681246,4.28094991,2241.9,2241.0,8.92313]
[1625098681987,10.97385991,2241.9,2241.0,8.92313]
[1625098682288,17.82385991,2241.9,2241.0,8.92313]
[1625098683093,17.82385991,2241.9,2240.8,10.0403188]
[1625098683958,17.82385991,2241.9,2240.8,3.3465888]
[1625098684554,17.82385991,2241.9,2241.0,6.69311]
[1625098684657,11.13094991,2241.9,2241.1,3.3461794]
[1625098684753,11.13094991,2241.9,2241.1,3.4461794]
[1625098685057,17.30994991,2241.9,2241.1,3.4461794]
[1625098685252,17.30994991,2241.9,2241.1,3.3461794]
[1625098685558,17.30994991,2241.9,2241.4,6.69194]
[1625098687048,17.30994991,2241.9,2241.4,10.0377453]
[1625098687247,17.30994991,2241.9,2241.6,6.69131]
[1625098687347,10.45994991,2241.9,2241.7,0.08]
[1625098687449,3.3762577,2241.8,2241.7,0.08]
[1625098687652,6.329,2241.9,2241.7,0.08]
[1625098687754,6.329,2241.9,2241.4,13.84391675]
[1625098687755,3.21384872,2241.8,2241.4,13.84391675]
[1625098687855,0.15,2241.9,2241.7,2.49811145]
[1625098687952,0.15,2241.9,2241.7,2.48811145]
[1625098688251,3.41736422,2242.4,2241.7,9.17894145]
[1625098688466,6.85,2242.5,2241.8,0.1]
[1625098688552,3.19585885,2242.4,2241.8,0.1]
[1625098688854,3.19585885,2242.4,2241.9,7.40245312]
[1625098689052,3.19585885,2242.4,2242.0,0.08]
[1625098689254,3.19585885,2242.4,2241.9,11.33425312]
[1625098689354,3.19585885,2242.4,2242.2,6.68825]
[1625098689754,3.19585885,2242.4,2242.2,9.08070312]
[1625098689855,3.69422158,2243.2,2242.2,9.08070312]
[1625098689961,3.69422158,2243.2,2242.4,5.01]
[1625098690059,3.49318629,2243.4,2242.4,5.01]
[1625098690156,3.49318629,2243.4,2242.4,8.4112]
[1625098690356,3.49297199,2243.5,2242.4,16.4112]
[1625098690510,1.0,2243.6,2242.9,10.34019]
[1625098690795,3.23554839,2243.5,2242.9,10.34019]
[1625098690893,0.2,2243.9,2243.0,2.57245312]
[1625098691093,0.2,2243.9,2243.3,3.3422414]
[1625098692392,0.2,2243.9,2243.6,6.68442]
[1625098692595,0.2,2243.9,2243.6,10.89112]
[1625098692695,0.2,2243.9,2243.7,0.12]
[1625098692895,0.2,2243.9,2243.6,18.89112]
[1625098693031,0.2,2243.9,2243.6,14.68442]
[1625098694734,0.2,2243.9,2243.5,2.3972]
[1625098694837,0.2,2243.9,2243.3,8.91302]
[1625098694932,0.2,2243.9,2242.8,8.91559]
[1625098695490,0.16810506,2243.8,2242.8,8.91559]
[1625098695586,0.2,2243.9,2242.8,8.91559]
[1625098695684,3.92589552,2243.9,2242.8,8.91559]
[1625098696085,3.92589552,2243.9,2242.8,6.30543787]
[1625098696284,3.75275901,2243.9,2242.8,6.30543787]
[1625098696483,0.2,2243.9,2242.8,6.30543787]
[1625098698252,0.19,2243.9,2242.8,6.30543787]
[1625098698456,0.19,2243.9,2242.9,0.14]
[1625098698958,0.19,2243.9,2242.9,7.54245312]
[1625098699054,0.19,2243.9,2242.9,15.54245312]
[1625098699254,0.19,2243.9,2243.1,3.3424062]
[1625098699456,0.19,2243.9,2243.4,6.68466]
[1625098700978,0.19,2243.9,2243.6,5.01]
[1625098701177,0.09,2243.9,2243.5,2.3224]
[1625098701376,0.09,2243.9,2243.6,0.08]
[1625098702128,0.09,2243.9,2243.5,5.6643424]
[1625098702231,0.09,2243.9,2243.5,3.3419424]
[1625098702431,0.09,2243.9,2243.5,12.2538824]
[1625098702535,0.09,2243.9,2243.5,8.91194]
[1625098702635,0.09,2243.9,2242.9,3.39245312]
[1625098702931,0.09,2243.9,2243.1,0.04]
[1625098703232,0.09,2243.9,2243.0,11.30621312]
[1625098703734,0.09,2243.9,2243.0,19.30621312]
[1625098703930,0.09,2243.9,2243.4,8.91296]
[1625098704488,0.09,2243.9,2243.0,22.64885532]
[1625098704594,0.09,2243.9,2243.0,20.2564022]
[1625098704695,0.09,2243.9,2243.0,8.91376]
[1625098704796,0.09,2243.9,2242.9,1.0]
[1625098704797,0.2068491,2243.8,2242.9,1.0]
[1625098704893,5.28447672,2243.8,2242.9,1.0]
[1625098704996,6.68879,2243.5,2242.9,1.0]
[1625098705094,4.90384717,2243.4,2242.9,1.0]
[1625098705193,0.24761315,2243.3,2242.0,4.4578731]
[1625098705296,0.26280617,2243.3,2241.5,1.0]
[1625098705391,5.29736323,2243.2,2241.5,1.0]
[1625098705492,5.08413939,2243.1,2241.5,4.345059]
[1625098705594,10.09413939,2243.1,2241.5,4.345059]
[1625098705795,0.14,2243.0,2241.5,4.345059]
[1625098705894,0.34216212,2242.9,2241.5,4.345059]
[1625098705994,4.73378178,2242.9,2241.5,4.345059]
[1625098706091,5.90778178,2242.9,2241.5,4.345059]
[1625098706192,5.90778178,2242.9,2241.5,3.345059]
[1625098706294,6.69094,2242.8,2241.7,6.69039]
[1625098706393,4.5739837,2242.7,2241.7,6.69039]
[1625098706760,8.9184837,2242.7,2241.7,6.69039]
[1625098707509,15.6095537,2242.7,2241.6,8.92019]
[1625098708727,8.9184837,2242.7,2241.2,22.19976]
[1625098708878,8.93053557,2242.7,2241.5,3.345059]
[1625098708978,8.93053557,2242.7,2241.5,5.70017049]
[1625098709077,8.72308219,2242.7,2241.5,5.70017049]
[1625098710179,5.01,2242.5,2241.5,5.70017049]
[1625098710383,3.99429715,2242.4,2241.7,6.69017]
[1625098711529,3.99429715,2242.4,2241.7,4.04622596]
[1625098712532,3.99429715,2242.4,2241.2,11.14746]
[1625098712730,0.19482528,2242.3,2241.2,19.14746]
[1625098712829,3.99429715,2242.4,2241.2,19.14746]
[1625098713396,3.99429715,2242.4,2241.5,3.345059]
[1625098713694,3.99429715,2242.4,2241.4,6.69106]
[1625098713899,0.16,2242.3,2241.1,9.9859]
[1625098713996,0.16386497,2242.2,2241.1,9.9859]
[1625098714096,3.40976497,2242.2,2241.1,9.9859]
[1625098714198,3.93718542,2242.1,2241.0,1.0]
[1625098714351,4.10693424,2242.1,2241.0,1.0]
[1625098714447,5.30443424,2242.1,2240.8,19.14959]
[1625098714546,6.62123424,2242.1,2240.8,19.14959]
[1625098715155,6.62123424,2242.1,2240.8,8.0]
[1625098715252,0.29886511,2241.2,2240.4,2.35511149]
[1625098715350,0.28695216,2241.1,2240.1,0.2]
[1625098715448,4.69938132,2241.1,2240.1,0.2]
[1625098716135,0.08,2241.0,2240.1,0.2]
[1625098716238,0.2658579,2240.9,2240.1,0.2]
[1625098716340,0.27422235,2240.9,2240.1,0.2]
[1625098716939,4.41242916,2241.1,2240.1,0.2]
[1625098716940,0.21753729,2241.0,2240.1,0.2]
[1625098717040,0.14,2241.5,2240.1,0.2]
[1625098717137,0.16984718,2241.4,2240.1,0.2]
[1625098717237,0.17027317,2241.5,2240.1,0.2]
[1625098717340,0.31718592,2241.5,2240.1,0.2]
[1625098717438,0.31718592,2241.5,2240.1,2.55511149]
[1625098717638,0.14,2241.5,2240.1,2.55511149]
[1625098718476,0.14,2241.5,2240.1,9.24980149]
[1625098718575,0.14,2241.5,2240.1,11.45354269]
[1625098718677,0.14,2241.5,2240.3,5.01]
[1625098718977,4.07599424,2241.6,2240.3,5.01]
[1625098719078,4.07599424,2241.6,2240.3,7.36511149]
[1625098719275,4.07599424,2241.6,2240.3,15.36511149]
[1625098719579,4.07599424,2241.6,2240.7,6.69285]
[1625098720262,4.07599424,2241.6,2240.4,8.92396]
[1625098720362,0.14,2241.5,2240.1,3.5466292]
[1625098720659,6.69475,2241.4,2240.1,3.5466292]
[1625098720951,4.03043087,2241.3,2240.1,3.5466292]
[1625098721850,4.03043087,2241.3,2240.2,6.69439]
[1625098723001,3.93205971,2241.5,2240.2,13.12370149]
[1625098726691,7.85,2242.1,2240.3,0.0111177]
[1625098726790,6.85,2242.1,2240.6,3.3459379]
[1625098726916,3.67282585,2241.6,2240.7,0.12030533]
[1625098727013,3.67282585,2241.6,2240.7,3.68632137]
[1625098727313,3.85304134,2242.0,2240.7,3.68632137]
[1625098727413,3.85304134,2242.0,2241.0,3.3452402]
[1625098727514,3.85304134,2242.0,2241.0,4.3720402]
[1625098727813,3.85304134,2242.0,2241.1,4.63173357]
[1625098728417,6.85,2242.1,2241.5,11.47079]
[1625098728720,6.85,2242.1,2241.5,13.82590149]
[1625098729020,3.62084982,2242.5,2241.5,13.82590149]
[1625098729152,18.85,2242.6,2241.5,13.82590149]
[1625098729351,18.85,2242.6,2241.5,17.17052929]
[1625098730101,3.41074264,2242.5,2241.5,17.17052929]
[1625098730708,3.41074264,2242.5,2241.5,19.44715137]
[1625098733145,3.41074264,2242.5,2241.5,14.8154178]
[1625098736767,3.41074264,2242.5,2241.5,22.8154178]
[1625098739575,3.41074264,2242.5,2241.5,4.7809]
[1625098739675,0.17680073,2242.4,2241.3,8.91873]
[1625098739770,0.17680073,2242.4,2241.0,4.4595553]
[1625098739771,0.24982399,2242.4,2241.0,4.4595553]
[1625098740222,0.18982399,2242.4,2241.0,4.4595553]
[1625098740469,6.69163,2242.3,2241.2,6.69163]
[1625098740573,3.92458164,2242.2,2241.2,6.69163]
[1625098740668,3.93027276,2242.2,2241.2,6.69163]
[1625098741572,3.88027276,2242.2,2241.2,6.69163]
[1625098742473,10.57222276,2242.2,2241.2,6.69163]
[1625098744427,3.88027276,2242.2,2241.2,6.69163]
[1625098744524,3.88027276,2242.2,2241.4,5.01]
[1625098744622,3.24256411,2242.5,2241.4,10.0516]
[1625098744723,3.24256411,2242.5,2241.5,5.01]
[1625098744978,3.24256411,2242.5,2241.5,7.43662208]
[1625098745279,3.24256411,2242.5,2241.5,9.79173357]
[1625098745580,3.24256411,2242.5,2241.9,10.23052]
[1625098745686,3.24256411,2242.5,2241.9,3.5412]
[1625098745786,3.24256411,2242.5,2241.9,0.89751986]
[1625098745879,3.20556411,2242.5,2241.9,0.89751986]
[1625098746587,3.20556411,2242.5,2241.9,7.58683986]